lending/lending_fUSD_20240926
["ID","MTS","AMOUNT","RATE_DAILY","PERIOD"]
[339235775,1727391043438,-503.79227022,0.00012876,2]
[339235776,1727391043448,-848.56,0.00012876,2]
[339235777,1727391043458,-848.56,0.00012876,2]
[339235778,1727391043467,-848.56,0.00012876,2]
[339235779,1727391043477,-178.03185387,0.00012876,2]
[339235780,1727391043490,-670.52814613,0.00012876,2]
[339235781,1727391043500,-506.47958823,0.00012876,2]
[339235782,1727391043509,-500.0,0.00012876,2]
[339235783,1727391043519,-500.0,0.00012876,2]
[339235784,1727391043529,-500.0,0.00012876,2]
[339235785,1727391043539,-252.95226561,0.00012876,2]
[339235786,1727391043551,-247.04773439,0.00012876,2]
[339235787,1727391043560,-500.0,0.00012876,2]
[339235788,1727391043570,-505.55696567,0.00012876,2]
[339235789,1727391043579,-252.02429994,0.00012876,2]
[339235790,1727391043590,-247.97570006,0.00012876,2]
[339235791,1727391043600,-382.28271333,0.00012876,2]
[339235792,1727391043612,-117.71728667,0.00012876,2]
[339235793,1727391043621,-500.0,0.00012876,2]
[339235794,1727391043631,-645.11512546,0.00012876,2]
[339235795,1727391043640,-500.0,0.00012876,2]
[339235796,1727391043649,-500.0,0.00012876,2]
[339235797,1727391043659,-274.20711105,0.00012876,2]
[339235798,1727391043671,-230.19454684,0.00012876,2]
[339235799,1727391043680,-577.66,0.00012876,2]
[339235800,1727391043690,-577.66,0.00012876,2]
[339235801,1727391043700,-208.24295703,0.00012876,2]
[339235802,1727391043713,-369.41704297,0.00012876,2]
[339235803,1727391043722,-570.21433015,0.00012876,2]
[339235804,1727391043734,-7.44566985,0.00012876,2]
[339235805,1727391043743,-577.66,0.00012876,2]
[339235806,1727391043752,-577.66,0.00012876,2]
[339235807,1727391043762,-500.0,0.00012876,2]
[339235808,1727391043771,-508.21077675,0.00012876,2]
[339235809,1727391043780,-71.38090806,0.00012876,2]
[339235810,1727391044040,-395.58317664,0.00012876,2]
[339235811,1727391044050,-106.92280594,0.00012876,2]
[339235812,1727391044062,-393.07719406,0.00012876,2]
[339235813,1727391044071,-500.0,0.00012876,2]
[339235814,1727391044081,-500.0,0.00012876,2]
[339235815,1727391044091,-500.0,0.00012876,2]
[339235816,1727391044101,-500.0,0.00012876,2]
[339235817,1727391044110,-500.0,0.00012876,2]
[339235818,1727391044119,-453.16567797,0.00012876,2]
[339235819,1727391044129,-500.0,0.00012876,2]
[339235820,1727391044139,-500.0,0.00012876,2]
[339235821,1727391044149,-396.42214919,0.00012876,2]
[339235822,1727391044158,-543.53,0.00012876,2]
[339235823,1727391044168,-150.0661358,0.00012876,2]
[339235824,1727391044181,-393.4638642,0.00012876,2]
[339235825,1727391044191,-543.53,0.00012876,2]
[339235826,1727391044200,-543.53,0.00012876,2]
[339235827,1727391044209,-543.53,0.00012876,2]
[339235828,1727391044219,-500.0,0.00012876,2]
[339235829,1727391044228,-543.53,0.00012876,2]
[339235830,1727391044238,-500.0,0.00012876,2]
[339235831,1727391044248,-494.31033347,0.00012876,2]
[339235832,1727391044258,-500.0,0.00012876,2]
[339235833,1727391044267,-500.0,0.00012876,2]
[339235834,1727391044277,-500.0,0.00012876,2]
[339235835,1727391044287,-500.0,0.00012876,2]
[339235836,1727391044296,-500.0,0.00012876,2]
[339235837,1727391044306,-500.0,0.00012876,2]
[339235838,1727391044315,-500.0,0.00012876,2]
[339235839,1727391044325,-500.0,0.00012876,2]
[339235840,1727391044335,-500.0,0.00012876,2]
[339235841,1727391044345,-500.0,0.00012876,2]
[339235842,1727391044355,-500.0,0.00012876,2]
[339235843,1727391044364,-500.0,0.00012876,2]
[339235844,1727391044374,-500.0,0.00012876,2]
[339235845,1727391044383,-500.0,0.00012876,2]
[339235846,1727391044394,-500.0,0.00012876,2]
[339235847,1727391044403,-500.0,0.00012876,2]
[339235848,1727391044413,-500.0,0.00012876,2]
[339235849,1727391044423,-500.0,0.00012876,2]
[339235850,1727391044433,-503.67087476,0.00012876,2]
[339235851,1727391044443,-500.0,0.00012876,2]
[339235852,1727391044453,-738.04,0.00012876,2]
[339235853,1727391044462,-738.04,0.00012876,2]
[339235854,1727391044472,-738.04,0.00012876,2]
[339235855,1727391044482,-738.04,0.00012876,2]
[339235856,1727391044492,-738.04,0.00012876,2]
[339235857,1727391044502,-738.04,0.00012876,2]
[339235858,1727391044511,-500.0,0.00012876,2]
[339235859,1727391044521,-500.0,0.00012876,2]
[339235860,1727391044530,-500.0,0.00012876,2]
[339235861,1727391044540,-500.0,0.00012876,2]
[339235862,1727391044550,-500.0,0.00012876,2]
[339235863,1727391044559,-509.23366212,0.00012876,2]
[339235864,1727391044569,-500.0,0.00012876,2]
[339235865,1727391044579,-500.0,0.00012876,2]
[339235866,1727391044588,-500.0,0.00012876,2]
[339235867,1727391044598,-500.0,0.00012876,2]
[339235868,1727391044609,-500.0,0.00012876,2]
[339235869,1727391044619,-608.91452945,0.00012876,2]
[339235870,1727391044629,-500.0,0.00012876,2]
[339235871,1727391044638,-500.0,0.00012876,2]
[339235872,1727391044648,-500.0,0.00012876,2]
[339235873,1727391044658,-500.0,0.00012876,2]
[339235874,1727391044667,-500.0,0.00012876,2]
[339235875,1727391044676,-500.0,0.00012876,2]
[339235876,1727391044685,-617.05838012,0.00012876,2]
[339235877,1727391044695,-500.0,0.00012876,2]
[339235878,1727391044705,-500.0,0.00012876,2]
[339235879,1727391044714,-500.0,0.00012876,2]
[339235880,1727391044723,-500.0,0.00012876,2]
[339235881,1727391044734,-500.0,0.00012876,2]
[339235882,1727391044742,-500.0,0.00012876,2]
[339235883,1727391044752,-500.0,0.00012876,2]
[339235884,1727391044762,-500.0,0.00012876,2]
[339235885,1727391044771,-500.0,0.00012876,2]
[339235886,1727391044781,-500.0,0.00012876,2]
[339235887,1727391044791,-500.0,0.00012876,2]
[339235888,1727391044800,-500.0,0.00012876,2]
[339235889,1727391044810,-450.08242347,0.00012876,2]
[339235890,1727391044819,-500.0,0.00012876,2]
[339235891,1727391044829,-500.0,0.00012876,2]
[339235892,1727391044838,-500.0,0.00012876,2]
[339235893,1727391044847,-500.0,0.00012876,2]
[339235894,1727391044985,-500.0,0.00012876,2]
[339235895,1727391045030,-500.0,0.00012876,2]
[339235896,1727391045039,-500.0,0.00012876,2]
[339235897,1727391045049,-790.31,0.00012876,2]
[339235898,1727391045059,-500.0,0.00012876,2]
[339235899,1727391045068,-504.64092813,0.00012876,2]
[339235900,1727391045078,-790.31,0.00012876,2]
[339235901,1727391045088,-500.0,0.00012876,2]
[339235902,1727391045097,-500.0,0.00012876,2]
[339235903,1727391045108,-790.31,0.00012876,2]
[339235904,1727391045117,-174.64153814,0.00012876,2]
[339235905,1727391045127,-790.31,0.00012876,2]
[339235906,1727391045136,-501.27454425,0.00012876,2]
[339235907,1727391045145,-790.31,0.00012876,2]
[339235908,1727391045155,-790.31,0.00012876,2]
[339235909,1727391045165,-500.0,0.00012876,2]
[339235910,1727391045174,-562.25807823,0.00012876,2]
[339235911,1727391045184,-390.99240679,0.00012876,2]
[339235912,1727391045194,-500.0,0.00012876,2]
[339235913,1727391045203,-500.0,0.00012876,2]
[339235914,1727391045213,-500.0,0.00012876,2]
[339235915,1727391045224,-509.74579053,0.00012876,2]
[339235916,1727391045234,-500.0,0.00012876,2]
[339235917,1727391045245,-417.2131784,0.00012876,2]
[339235918,1727391045255,-500.0,0.00012876,2]
[339235919,1727391045264,-500.0,0.00012876,2]
[339235920,1727391045273,-255.98998014,0.00012876,2]
[339235921,1727391045283,-500.0,0.00012876,2]
[339235922,1727391045293,-504.91349904,0.00012876,2]
[339235923,1727391045302,-1175.32,0.00012876,2]
[339235924,1727391045311,-503.69144322,0.00012876,2]
[339235925,1727391045321,-707.93,0.00012876,2]
[339235926,1727391045331,-707.93,0.00012876,2]
[339235927,1727391045340,-707.93,0.00012876,2]
[339235928,1727391045349,-707.93,0.00012876,2]
[339235929,1727391045358,-707.93,0.00012876,2]
[339235930,1727391045368,-707.93,0.00012876,2]
[339235931,1727391045377,-500.0,0.00012876,2]
[339235932,1727391045387,-500.0,0.00012876,2]
[339235933,1727391045397,-151.80460842,0.00012876,2]
[339235934,1727391045406,-450.58095878,0.00012876,2]
[339235935,1727391045416,-500.0,0.00012876,2]
[339235936,1727391045425,-500.0,0.00012876,2]
[339235937,1727391045436,-500.0,0.00012876,2]
[339235938,1727391045445,-607.75450366,0.00012876,2]
[339235939,1727391045455,-500.0,0.00012876,2]
[339235940,1727391045465,-500.0,0.00012876,2]
[339235941,1727391045474,-500.0,0.00012876,2]
[339235942,1727391045485,-500.0,0.00012876,2]
[339235943,1727391045495,-500.0,0.00012876,2]
[339235945,1727391045504,-500.0,0.00012876,2]
[339235946,1727391045513,-500.0,0.00012876,2]
[339235947,1727391045522,-500.0,0.00012876,2]
[339235948,1727391045532,-500.0,0.00012876,2]
[339235949,1727391045541,-500.0,0.00012876,2]
[339235950,1727391045551,-500.0,0.00012876,2]
[339235951,1727391045559,-503.13908507,0.00012876,2]
[339235952,1727391045569,-500.0,0.00012876,2]
[339235953,1727391045578,-1257.36,0.00012876,2]
[339235954,1727391045588,-1152.1453896,0.00012876,2]
[339235955,1727391045609,-105.2146104,0.00012876,2]
[339235956,1727391045621,-500.0,0.00012876,2]
[339235957,1727391045630,-500.0,0.00012876,2]
[339235958,1727391045639,-2.39703492,0.00012876,2]
[339235959,1727391045651,-497.60296508,0.00012876,2]
[339235960,1727391045661,-585.37523733,0.00012876,2]
[339235961,1727391045671,-500.0,0.00012876,2]
[339235962,1727391045680,-157.65179759,0.00012876,2]
[339235963,1727391045692,-944.18820241,0.00012876,2]
[339235965,1727391045701,-500.0,0.00012876,2]
[339235966,1727391045711,-500.0,0.00012876,2]
[339235967,1727391045720,-1101.84,0.00012876,2]
[339235968,1727391045730,-525.39166731,0.00012876,2]
[339235969,1727391045747,-500.0,0.00012876,2]
[339235970,1727391045758,-534.11502915,0.00012876,2]
[339235971,1727391045767,-500.0,0.00012876,2]
[339235972,1727391045777,-516.38,0.00012876,2]
[339235973,1727391045786,-500.0,0.00012876,2]
[339235974,1727391045796,-500.0,0.00012876,2]
[339235975,1727391045806,-500.0,0.00012876,2]
[339235976,1727391045815,-500.0,0.00012876,2]
[339235977,1727391045825,-500.0,0.00012876,2]
[339235978,1727391045834,-500.0,0.00012876,2]
[339235979,1727391045844,-53.03510113,0.00012876,2]
[339235980,1727391045887,-446.96489887,0.00012876,2]
[339235981,1727391045896,-500.0,0.00012876,2]
[339235982,1727391045906,-16.22010108,0.00012876,2]
[339235983,1727391045917,-334.049,0.00012876,2]
[339235984,1727391045936,-149.73089892,0.00012876,2]
[339235985,1727391045947,-500.0,0.00012876,2]
[339235986,1727391045956,-500.0,0.00012876,2]
[339235987,1727391045965,-202.55065975,0.00012876,2]
[339235988,1727391046228,-297.44934025,0.00012876,2]
[339235989,1727391046242,-500.0,0.00012876,2]
[339235990,1727391046251,-500.0,0.00012876,2]
[339235991,1727391046261,-500.0,0.00012876,2]
[339235992,1727391046270,-500.0,0.00012876,2]
[339235993,1727391046280,-500.76292092,0.00012876,2]
[339235994,1727391046289,-500.0,0.00012876,2]
[339235995,1727391046298,-501.16021021,0.00012876,2]
[339235996,1727391046307,-512.75976082,0.00012876,2]
[339235997,1727391046316,-500.0,0.00012876,2]
[339235998,1727391046326,-500.0,0.00012876,2]
[339235999,1727391046335,-500.0,0.00012876,2]
[339236000,1727391046344,-500.0,0.00012876,2]
[339236001,1727391046354,-604.23698597,0.00012876,2]
[339236002,1727391046363,-500.0,0.00012876,2]
[339236003,1727391046372,-500.0,0.00012876,2]
[339236004,1727391046382,-500.0,0.00012876,2]
[339236005,1727391046391,-500.0,0.00012876,2]
[339236006,1727391046400,-500.0,0.00012876,2]
[339236007,1727391046410,-500.0,0.00012876,2]
[339236008,1727391046419,-500.0,0.00012876,2]
[339236009,1727391046428,-500.0,0.00012876,2]
[339236010,1727391046437,-500.0,0.00012876,2]
[339236011,1727391046446,-500.0,0.00012876,2]
[339236012,1727391046455,-500.0,0.00012876,2]
[339236013,1727391046464,-637.50679507,0.00012876,2]
[339236014,1727391046474,-519.53,0.00012876,2]
[339236015,1727391046483,-519.53,0.00012876,2]
[339236016,1727391046495,-501.30823461,0.00012876,2]
[339236017,1727391046504,-519.53,0.00012876,2]
[339236018,1727391046513,-519.53,0.00012876,2]
[339236019,1727391046522,-519.53,0.00012876,2]
[339236020,1727391046532,-519.53,0.00012876,2]
[339236021,1727391046541,-1693.32,0.00012876,2]
[339236022,1727391046551,-1693.32,0.00012876,2]
[339236023,1727391046560,-501.22403059,0.00012876,2]
[339236024,1727391046569,-14.14897529,0.00012876,2]
[339236025,1727391046583,-859.59283247,0.00012876,2]
[339236026,1727391046594,-265.39076837,0.00012876,2]
[339236027,1727391046606,-287.88767852,0.00012876,2]
[339236028,1727391046617,-266.29974535,0.00012876,2]
[339236029,1727391046627,-579.88034505,0.00012876,2]
[339236030,1727391046636,-1693.32,0.00012876,2]
[339236031,1727391046646,-1693.32,0.00012876,2]
[339236032,1727391046656,-1693.32,0.00012876,2]
[339236033,1727391046666,-500.0,0.00012876,2]
[339236034,1727391046675,-500.0,0.00012876,2]
[339236035,1727391046684,-500.0,0.00012876,2]
[339236036,1727391046694,-500.0,0.00012876,2]
[339236037,1727391046703,-151.483378,0.00012876,2]
[339236038,1727391046713,-753.1,0.00012876,2]
[339236039,1727391046723,-753.1,0.00012876,2]
[339236040,1727391046732,-753.1,0.00012876,2]
[339236041,1727391046743,-574.952302,0.00012876,2]
[339236042,1727391046752,-307.26545668,0.00012876,2]
[339236043,1727391046797,-445.83454332,0.00012876,2]
[339236044,1727391046807,-753.1,0.00012876,2]
[339236045,1727391046816,-567.06,0.00012876,2]
[339236046,1727391046825,-753.1,0.00012876,2]
[339236047,1727391046834,-567.06,0.00012876,2]
[339236048,1727391046844,-500.0,0.00012876,2]
[339236049,1727391046853,-500.0,0.00012876,2]
[339236050,1727391046862,-501.2233168,0.00012876,2]
[339236051,1727391046871,-500.0,0.00012876,2]
[339236052,1727391046880,-500.0,0.00012876,2]
[339236053,1727391046890,-336.17413988,0.00012876,2]
[339236054,1727391046902,-163.82586012,0.00012876,2]
[339236055,1727391046911,-238.7040139,0.00012876,2]
[339236056,1727391046921,-183.85611826,0.00012876,2]
[339236057,1727391046932,-435.08598045,0.00012876,2]
[339236058,1727391046944,-64.91401955,0.00012876,2]
[339236059,1727391046955,-574.952302,0.00012876,2]
[339236060,1727391046965,-451.63040695,0.00012876,2]
[339236061,1727391046985,-48.36959305,0.00012876,2]
[339236062,1727391046995,-287.08140695,0.00012876,2]
[339236063,1727391047010,-212.91859305,0.00012876,2]
[339236064,1727391047022,-500.0,0.00012876,2]
[339236065,1727391047032,-520.12,0.00012876,2]
[339236066,1727391047042,-500.0,0.00012876,2]
[339236067,1727391047051,-520.12,0.00012876,2]
[339236068,1727391047060,-442.68974935,0.00012876,2]
[339236069,1727391047072,-57.31025065,0.00012876,2]
[339236070,1727391047082,-520.12,0.00012876,2]
[339236071,1727391047091,-520.12,0.00012876,2]
[339236072,1727391047102,-520.12,0.00012876,2]
[339236073,1727391047113,-520.12,0.00012876,2]
[339236074,1727391047122,-500.0,0.00012876,2]
[339236075,1727391047131,-500.0,0.00012876,2]
[339236076,1727391047141,-500.0,0.00012876,2]
[339236077,1727391047151,-500.0,0.00012876,2]
[339236078,1727391047160,-500.0,0.00012876,2]
[339236079,1727391047169,-500.0,0.00012876,2]
[339236080,1727391047178,-500.0,0.00012876,2]
[339236081,1727391047187,-467.49059946,0.00012876,2]
[339236082,1727391047197,-151.0,0.00012876,2]
[339236083,1727391047206,-500.0,0.00012876,2]
[339236084,1727391047215,-500.0,0.00012876,2]
[339236085,1727391047225,-500.0,0.00012876,2]
[339236086,1727391047234,-500.0,0.00012876,2]
[339236087,1727391047245,-500.0,0.00012876,2]
[339236088,1727391047255,-500.0,0.00012876,2]
[339236089,1727391047264,-551.79575764,0.00012876,2]
[339236090,1727391047273,-500.0,0.00012876,2]
[339236091,1727391047283,-500.0,0.00012876,2]
[339236092,1727391047293,-500.0,0.00012876,2]
[339236093,1727391047303,-350.01198719,0.00012876,2]
[339236094,1727391047313,-487.55342349,0.00012876,2]
[339236095,1727391047323,-500.0,0.00012876,2]
[339236096,1727391047332,-208.65430541,0.00012876,2]
[339236097,1727391047346,-291.34569459,0.00012876,2]
[339236098,1727391047356,-58.65307969,0.00012876,2]
[339236099,1727391048911,1050.0,0.00011,2]
[339236100,1727391160334,3300.73271406,0.00011064,2]
[339236101,1727391169101,174.54,9.514e-05,2]
[339236102,1727391400313,221.43,0.00010959,2]
[339236103,1727391492987,150.0,0.0001389,30]
[339236104,1727391571508,415.09,9.871e-05,2]
[339236105,1727391627653,199.9,0.000149,31]
[339236106,1727391627769,199.9,0.000149,31]
[339236113,1727391972903,250.24,0.00010959,2]
[339236119,1727392052040,5956.72,0.00011,2]
[339236120,1727392054991,150.0,0.0001389,30]
[339236121,1727392123535,394.33,9.683e-05,2]
[339236123,1727392231950,-500.0,0.00011164,2]
[339236124,1727392231960,-500.0,0.00011164,2]
[339236125,1727392231970,-500.0,0.00011164,2]
[339236126,1727392231981,-25.1233529,0.00011567,2]
[339236127,1727392231996,-323.86162,0.00011567,2]
[339236128,1727392232009,-290.832,0.00011567,2]
[339236129,1727392232242,-119.5566271,0.00011567,2]
[339236130,1727392232256,-238.96,0.0001158,2]
[339236131,1727392232265,-250.0,0.00011581,2]
[339236132,1727392232275,-1472.84,0.00011582,2]
[339236133,1727392232285,-755.15,0.00011607,2]
[339236134,1727392232295,-250.0,0.00011636,2]
[339236135,1727392232305,-1548.95,0.00011667,2]
[339236136,1727392232315,-151.83,0.00011667,2]
[339236137,1727392232326,-768.7,0.00011735,2]
[339236138,1727392232336,-300.0,0.00011767,2]
[339236139,1727392232346,-250.0,0.00011768,2]
[339236140,1727392232356,-156.93,0.00011822,2]
[339236141,1727392232366,-1000.0,0.00011848,2]
[339236142,1727392232376,-197.18,0.00011866,2]
[339236143,1727392232385,-394.33,0.00011947,2]
[339236144,1727392232395,-218.38,0.00012329,2]
[339236145,1727392232404,-2483.966,0.0001258,2]
[339236146,1727392232414,-1930.1682,0.0001258,2]
[339236147,1727392232424,-283.4059,0.0001258,2]
[339236148,1727392232433,-14946.65,0.00012668,2]
[339236149,1727392232442,-150.0,0.0001271,2]
[339236150,1727392232452,-1147.0,0.0001271,2]
[339236151,1727392232462,-13497.0,0.0001271,2]
[339236152,1727392232471,-5937.022,0.0001271,2]
[339236153,1727392232481,-827.07643552,0.00012771,2]
[339236154,1727392232491,-150.0,0.00012775,2]
[339236155,1727392232500,-1000.0,0.00012776,2]
[339236156,1727392232510,-6135.2003,0.00012776,2]
[339236157,1727392232520,-180.45951325,0.00012776,2]
[339236158,1727392232529,-170.54036843,0.00012776,2]
[339236159,1727392232539,-4736.81002441,0.00012776,2]
[339236160,1727392232549,-2374.31376487,0.00012779,2]
[339236161,1727392232558,-156.2770892,0.00012796,2]
[339236162,1727392232568,-150.02062703,0.00012796,2]
[339236163,1727392232578,-9867.4025775,0.00012796,2]
[339236164,1727392232587,-500.0,0.00012797,2]
[339236165,1727392232597,-12744.09595888,0.00012797,2]
[339236166,1727392232610,-460.43123519,0.00012797,2]
[339236167,1727392232630,-632.24920067,0.00012797,2]
[339236172,1727392238488,-267.7675,0.00012797,2]
[339236173,1727392238528,-686.90610526,0.00012797,2]
[339236174,1727392238540,-1015.49136083,0.00012797,2]
[339236275,1727392239847,-193.68772911,0.00012797,2]
[339236277,1727392239858,-358.64317131,0.00012797,2]
[339236313,1727392240200,-13379.44546786,0.00012797,2]
[339236315,1727392240215,-9867.4025775,0.00012798,2]
[339236317,1727392240225,-230.637,0.000128,2]
[339236320,1727392240234,-991.29421436,0.000128,2]
[339236321,1727392240243,-9867.4025775,0.000128,2]
[339236323,1727392240258,-199.15185174,0.00012865,2]
[339236325,1727392240268,-152.63,0.00012865,2]
[339236328,1727392240277,-152.63,0.00012866,2]
[339236329,1727392240286,-6246.68743828,0.00012873,2]
[339236331,1727392240296,-158.74735225,0.00012875,2]
[339236333,1727392240306,-183.3269383,0.00012875,2]
[339236335,1727392240315,-562820.69293424,0.00012876,2]
[339236337,1727392240326,-41159.05,0.00012876,2]
[339236339,1727392240343,-151.0,0.00012876,2]
[339236341,1727392240352,-151.0,0.00012876,2]
[339236343,1727392240361,-500.0,0.00012876,2]
[339236345,1727392240370,-500.0,0.00012876,2]
[339236346,1727392240380,-151.0,0.00012876,2]
[339236348,1727392240389,-151.0,0.00012876,2]
[339236350,1727392240398,-151.0,0.00012876,2]
[339236352,1727392240407,-500.0,0.00012876,2]
[339236354,1727392240417,-500.0,0.00012876,2]
[339236356,1727392240426,-501.31541044,0.00012876,2]
[339236358,1727392240435,-500.0,0.00012876,2]
[339236360,1727392240445,-609.42563694,0.00012876,2]
[339236362,1727392240454,-500.0,0.00012876,2]
[339236364,1727392240464,-500.0,0.00012876,2]
[339236366,1727392240473,-500.0,0.00012876,2]
[339236367,1727392240482,-500.0,0.00012876,2]
[339236369,1727392240492,-500.0,0.00012876,2]
[339236371,1727392240501,-500.0,0.00012876,2]
[339236373,1727392240510,-500.0,0.00012876,2]
[339236375,1727392240520,-500.0,0.00012876,2]
[339236377,1727392240529,-500.0,0.00012876,2]
[339236379,1727392240539,-500.0,0.00012876,2]
[339236381,1727392240548,-500.0,0.00012876,2]
[339236383,1727392240557,-500.0,0.00012876,2]
[339236385,1727392240566,-500.0,0.00012876,2]
[339236386,1727392240575,-500.0,0.00012876,2]
[339236388,1727392240585,-151.0,0.00012876,2]
[339236390,1727392240594,-151.0,0.00012876,2]
[339236392,1727392240604,-151.0,0.00012876,2]
[339236394,1727392240613,-151.0,0.00012876,2]
[339236396,1727392240623,-236.664878,0.00012876,2]
[339236398,1727392240632,-151.0,0.00012876,2]
[339236400,1727392240641,-502.13892945,0.00012876,2]
[339236402,1727392240650,-502.15291308,0.00012876,2]
[339236404,1727392240659,-164.99149918,0.00012876,2]
[339236405,1727392240669,-500.0,0.00012876,2]
[339236407,1727392240678,-500.0,0.00012876,2]
[339236409,1727392240687,-500.0,0.00012876,2]
[339236411,1727392240697,-499.23253635,0.00012876,2]
[339236413,1727392240706,-501.89638643,0.00012876,2]
[339236415,1727392240715,-2000.0,0.00012876,2]
[339236417,1727392240724,-500.0,0.00012876,2]
[339236419,1727392240733,-200.0,0.00012876,2]
[339236421,1727392240743,-151.0,0.00012876,2]
[339236423,1727392240751,-500.0,0.00012876,2]
[339236424,1727392240760,-460.65560264,0.00012876,2]
[339236426,1727392240769,-500.5177619,0.00012876,2]
[339236428,1727392240778,-151.0,0.00012876,2]
[339236430,1727392240790,-151.0,0.00012876,2]
[339236432,1727392240799,-500.85663304,0.00012876,2]
[339236434,1727392240808,-151.441897,0.00012876,2]
[339236437,1727392240819,-151.285018,0.00012876,2]
[339236438,1727392240832,-151.0,0.00012876,2]
[339236441,1727392240842,-153.105964,0.00012876,2]
[339236442,1727392240851,-500.67188279,0.00012876,2]
[339236445,1727392240861,-500.0,0.00012876,2]
[339236447,1727392240870,-500.0,0.00012876,2]
[339236448,1727392240880,-500.0,0.00012876,2]
[339236450,1727392240889,-151.0,0.00012876,2]
[339236452,1727392240900,-151.0,0.00012876,2]
[339236454,1727392240909,-151.0,0.00012876,2]
[339236456,1727392240918,-151.0,0.00012876,2]
[339236458,1727392240928,-666.4,0.00012876,2]
[339236460,1727392240937,-666.4,0.00012876,2]
[339236461,1727392240946,-666.4,0.00012876,2]
[339236463,1727392240956,-666.4,0.00012876,2]
[339236465,1727392240965,-666.4,0.00012876,2]
[339236468,1727392240976,-666.4,0.00012876,2]
[339236470,1727392240986,-500.0,0.00012876,2]
[339236472,1727392240997,-177.89530726,0.00012876,2]
[339236474,1727392241006,-500.0,0.00012876,2]
[339236475,1727392241015,-151.0,0.00012876,2]
[339236477,1727392241024,-151.0,0.00012876,2]
[339236479,1727392241034,-500.0,0.00012876,2]
[339236481,1727392241043,-500.0,0.00012876,2]
[339236483,1727392241053,-500.0,0.00012876,2]
[339236485,1727392241062,-500.0,0.00012876,2]
[339236487,1727392241071,-500.0,0.00012876,2]
[339236489,1727392241084,-500.0,0.00012876,2]
[339236491,1727392241093,-500.0,0.00012876,2]
[339236493,1727392241103,-500.0,0.00012876,2]
[339236495,1727392241112,-500.0,0.00012876,2]
[339236497,1727392241121,-151.0,0.00012876,2]
[339236499,1727392241130,-151.0,0.00012876,2]
[339236500,1727392241139,-500.0,0.00012876,2]
[339236502,1727392241149,-694.87,0.00012876,2]
[339236504,1727392241158,-694.87,0.00012876,2]
[339236506,1727392241167,-500.0,0.00012876,2]
[339236508,1727392241176,-500.0,0.00012876,2]
[339236510,1727392241185,-500.0,0.00012876,2]
[339236512,1727392241195,-219.243792,0.00012876,2]
[339236514,1727392241204,-564.69,0.00012876,2]
[339236516,1727392241213,-564.69,0.00012876,2]
[339236517,1727392241222,-151.0,0.00012876,2]
[339236519,1727392241232,-151.0,0.00012876,2]
[339236521,1727392241241,-151.0,0.00012876,2]
[339236523,1727392241254,-151.0,0.00012876,2]
[339236525,1727392241265,-201.623025,0.00012876,2]
[339236527,1727392241275,-151.0,0.00012876,2]
[339236529,1727392241284,-151.0,0.00012876,2]
[339236531,1727392241295,-151.0,0.00012876,2]
[339236532,1727392241304,-151.0,0.00012876,2]
[339236533,1727392241313,-151.0,0.00012876,2]